[Event "4NCL 2022-2023"]
[Site "Daventry"]
[Date "2023.02.12"]
[Round "6.30"]
[White "Camacho Collados, Jose"]
[Black "Southcott-Moyers, Indy"]
[Result "1-0"]
[ECO "C68"]
[WhiteElo "2406"]
[BlackElo "2077"]
[Annotator "TA"]
[PlyCount "139"]
[EventDate "2022.10.20"]
[EventType "team-tourn"]
[EventCountry "ENG"]
[SourceTitle "playchess.com"]
[Source "ChessBase"]
[SourceQuality "1"]
[TimeControl "40/6000+30:2400+30"]

{[%evp 28,139,0,0,0,7,7,0,0,-13,14,14,14,-51,-12,-13,0,0,0,0,0,0,0,0,0,0,22,20,33,14,38,4,6,4,6,6,7,0,2,0,0,0,1,0,0,0,0,0,8,0,0,0,0,0,0,0,0,0,0,0,0,0,0,4,6,6,6,3,12,12,16,13,12,0,15,21,98,38,155,147,121,0,945,902,1380,1381,1216,1294,1550,1414,12831,12831,5904,1703,12844,12844,12845,12845,12845,12846,12850,12850,12850,27999,27999,27999,27999,27999,27999,27999,27999,27999,27999,27999]} 1. e4 {[%emt 0:00:02]} e5 {[%emt 0:00:22]} 2. Nf3 {[%emt 0:00:02]} Nc6 {[%emt 0:00:08]} 3. Bb5 {[%emt 0:00:05]} a6 {[%emt 0:00:33]} 4. Bxc6 {[%emt 0:00:04]} dxc6 {[%emt 0:00:05]} 5. O-O {[%emt 0:00:06]} Bg4 {[%emt 0:01:02]} 6. h3 {[%emt 0:00:04]} h5 {[%emt 0:00:55]} 7. d3 {[%emt 0:00:05]} Qf6 {[%emt 0:01:35]} 8. Nbd2 {[%emt 0:00:15]} Ne7 {[%emt 0:02:03]} 9. Re1 {[%emt 0:02:49]} Ng6 {[%emt 0:03:53]} 10. d4 {[%emt 0:00:47]} Bd6 {[%emt 0:04:41]} 11. hxg4 {[%emt 0:04:48]} hxg4 {[%emt 0:00:09]} 12. Nh2 {[%emt 0:00:46]} Rxh2 {[%emt 0:00:14]} 13. Qxg4 {[%emt 0:01:15]} Qh4 {[%emt 0:05:01]} 14. Qxh4 {[%emt 0:00:43]} Rxh4 {[%emt 0:00:03]} 15. Nf3 {[%emt 0:03:23]} Rh8 {[%emt 0:03:03] C68: Ruy Lopez: Exchange Variation, sidelines.} 16. Be3 {[%emt 0:12:51]} O-O-O {[%emt 0:11:20]} 17. Rad1 {[%emt 0:01:49]} Rhe8 {[%emt 0:03:29] The position is equal.} 18. Bc1 {[%emt 0:12:41] [#]} Rd7 $146 {[%emt 0:15:24]} ({Predecessor:} 18... c5 19. dxe5 Bxe5 20. g3 b6 21. Kg2 Kb7 22. Rxd8 Rxd8 23. Ng5 Rd7 24. f4 Bf6 25. Nf3 Nf8 26. e5 Be7 27. f5 Rd5 28. g4 Kc8 29. Kg3 c4 30. Kf4 {½-½ Henson,J-Lou,M CAN-ch U18 Canada 1996}) 19. dxe5 {[%emt 0:07:39]} Nxe5 {[%emt 0:05:19]} 20. Nd4 {[%emt 0:14:03]} ({Better is} 20. Nxe5 $11 Bxe5 21. Rxd7 Kxd7 22. g3) 20... Red8 {[%emt 0:12:02] aiming for ...Bf8.} 21. Nf5 $1 {[%emt 0:13:41]} g6 {[%emt 0:09:46]} 22. Nxd6+ {[%emt 0:01:52]} Rxd6 {[%emt 0:01:51]} 23. Rxd6 {[%emt 0:00:08]} cxd6 $11 {[%emt 0:00:19][%mdl 4096] Endgame KRB-KRN} 24. Bg5 {[%emt 0:05:45][%cal Of2f4]} Re8 {[%emt 0:02:39]} 25. Rd1 {[%emt 0:00:48]} Kc7 {[%emt 0:01:11]} 26. f3 {[%emt 0:01:55]} Re6 {[%emt 0:07:27]} 27. Kf2 {[%emt 0:02:21]} f6 {[%emt 0:01:48]} 28. Bf4 {[%emt 0:00:46]} g5 {[%emt 0:03:43]} 29. Bg3 {[%emt 0:00:52]} Re7 {[%emt 0:00:30]} 30. Rh1 {[%emt 0:01:41]} Kd7 {[%emt 0:00:35]} 31. b3 {[%emt 0:06:34]} Ke6 {[%emt 0:01:18]} 32. Rh6 {[%emt 0:01:19]} Rd7 {[%emt 0:04:38]} 33. Ke2 {[%emt 0:02:46]} d5 {[%emt 0:02:12]} 34. exd5+ {[%emt 0:00:17]} Rxd5 {[%emt 0:00:06]} 35. Be1 {[%emt 0:01:35]} Nf7 {[%emt 0:01:52]} 36. Rg6 {[%emt 0:03:13]} Re5+ {[%emt 0:02:08]} 37. Kf2 {[%emt 0:02:18]} Rd5 {[%emt 0:00:35]} 38. Ke2 {[%emt 0:01:26]} Re5+ {[%emt 0:00:05]} 39. Kd1 {[%emt 0:00:44]} Rd5+ {[%emt 0:00:10]} 40. Kc1 {[%emt 0:00:22]} Ne5 {[%emt 0:01:04]} 41. Rg8 {[%emt 0:42:10]} Rd7 {[%emt 0:44:01]} 42. Bc3 {[%emt 0:03:15]} Kf7 {[%emt 0:00:00]} 43. Rh8 {[%emt 0:00:00]} Ke6 {[%emt 0:00:00]} 44. a4 {[%emt 0:00:00]} Kf5 {[%emt 0:00:00]} 45. Re8 {[%emt 0:00:00]} Rf7 {[%emt 0:00:00]} 46. Bxe5 {[%emt 0:00:00]} fxe5 {[%emt 0:00:00] KR-KR} 47. Kd2 {[%emt 0:00:00]} Kf4 {[%emt 0:00:00]} 48. Ke2 {[%emt 0:00:00]} g4 {[%emt 0:00:00]} 49. fxg4 {[%emt 0:00:00]} Rg7 {[%emt 0:00:00] Prevents Rg8.} 50. Kf2 {[%emt 0:00:00]} Rd7 {[%emt 0:00:00]} 51. Rf8+ {[%emt 0:00:00]} Ke4 {[%emt 0:00:00] [#]} (51... Kxg4 $11 52. Ke3 Rd4) 52. Kg3 {[%emt 0:00:00]} (52. Rf3 $1 $16) 52... Re7 {[%emt 0:00:00]} (52... Rg7 $1 $14) 53. g5 $16 {[%emt 0:00:00]} Kd4 {[%emt 0:00:00] [#]} 54. g6 {[%emt 0:00:00]} (54. Rf3 $1 $16) 54... e4 $2 {[%emt 0:00:02][%mdl 8192] White leaves nothing to chance now.} (54... Re6 $11) 55. Rf7 $18 {[%emt 0:00:00]} Re6 {[%emt 0:00:04]} 56. g7 {[%emt 0:08:25]} (56. Rxb7 $2 {loses.} e3 57. Rb4+ Kd5 $19) 56... Rg6+ {[%emt 0:00:13]} 57. Kf4 {[%emt 0:00:00]} Rxg2 {[%emt 0:00:05]} 58. Rxb7 {[%emt 0:00:00] Threatens to win with Rd7+.} e3 {[%emt 0:01:25]} 59. Rd7+ {[%emt 0:00:00]} Kc3 {[%emt 0:00:05]} 60. Kxe3 {[%emt 0:00:00]} Kxc2 {[%emt 0:00:05] [#]} 61. Rd2+ $3 {[%emt 0:00:00][%mdl 576] Promotion} Rxd2 {[%emt 0:00:15]} 62. g8=Q {[%emt 0:00:00] KQ-KR} ({Worse is} 62. g8=R Rd6 63. Rb8 Rd3+ 64. Ke2 c5 $11) 62... Rd3+ {[%emt 0:00:13]} 63. Ke4 {[%emt 0:00:00]} Rxb3 {[%emt 0:00:04]} 64. Qc4+ {[%emt 0:00:00]} Rc3 {[%emt 0:01:14]} 65. Qxa6 {[%emt 0:00:00]} Kb3 {[%emt 0:00:13] White mates.} 66. a5 {[%emt 0:00:00][%cal Ba4a5,Ba5a6][%mdl 32]} Rc5 {[%emt 0:01:24]} 67. Qb7+ {[%emt 0:00:00]} Rb5 {[%emt 0:00:10]} 68. a6 {[%emt 0:00:00]} Kc4 {[%emt 0:01:01]} 69. Qxc6+ {[%emt 0:00:00]} Kb4 {[%emt 0:00:26]} 70. Qxb5+ {[%emt 0:00:00] Weighted Error Value: White=0.11 (very precise) /Black=0.17 (very precise)} 1-0

[Event "4NCL 2022-2023"]
[Site "Daventry"]
[Date "2023.02.12"]
[Round "6.32"]
[White "Sucikova, Svetlana"]
[Black "Turner, Lewis A"]
[Result "1-0"]
[ECO "E66"]
[WhiteElo "2205"]
[BlackElo "1833"]
[Annotator "TA"]
[PlyCount "45"]
[EventDate "2022.10.20"]
[EventType "team-tourn"]
[EventCountry "ENG"]
[SourceTitle "playchess.com"]
[Source "ChessBase"]
[SourceQuality "1"]
[TimeControl "40/6000+30:2400+30"]

{[%evp 17,45,0,0,0,0,0,0,0,0,0,29,-72,-56,-56,-51,-42,-57,-83,-45,-49,-27,-28,-16,-16,-25,-68,233,211,211,185]} 1. Nf3 {[%emt 0:00:18]} Nf6 {[%emt 0:00:07]} 2. g3 {[%emt 0:00:33]} g6 {[%emt 0:00:07]} 3. Bg2 {[%emt 0:01:40]} Bg7 {[%emt 0:00:06]} 4. O-O {[%emt 0:00:05]} O-O {[%emt 0:00:06]} 5. c4 {[%emt 0:07:02]} d6 {[%emt 0:00:15]} 6. d4 {[%emt 0:00:25]} c5 {[%emt 0:00:25]} 7. Nc3 {[%emt 0:01:14]} Nc6 {[%emt 0:00:18]} 8. d5 {[%emt 0:00:59]} Na5 {[%emt 0:00:34]} 9. Qd3 {[%emt 0:03:48]} a6 {[%emt 0:00:36]} 10. Bf4 {[%emt 0:14:34] E66: King's Indian: Fianchetto: 6...c5 7 0-0 Nc6 8 d5.} b5 {[%emt 0:04:19][%mdl 64] [#] Deflection} 11. cxb5 {[%emt 0:05:57]} axb5 {[%emt 0:00:09]} 12. Qxb5 {[%emt 0:04:02] The position is equal.} Bf5 {[%emt 0:01:36] [#]} 13. Qa4 $146 {[%emt 0:02:19]} ({Predecessor:} 13. e3 c4 14. Qb4 h6 15. Rfe1 Qd7 16. Nd4 Rfb8 17. Ncb5 g5 18. Nc6 gxf4 19. exf4 Nxd5 20. Nxb8 Rxb8 21. Qxa5 Qxb5 22. Qxb5 Rxb5 {0-1 Comp Schredder 1.0-Sikula,V (2295) Debrecen Aquitax op 1998 (9)}) 13... Rb8 {[%emt 0:01:51][%cal Ba8b8,Bb8b2,Bb2b4][%mdl 32]} 14. Nd2 {[%emt 0:13:58]} ({Stronger than} 14. e4 Nxe4 15. Nh4 (15. Nxe4 Rb4 $17) 15... Nxc3 16. bxc3 Bd3 $17) (14. Nh4 $11 {remains equal.}) 14... Rxb2 {[%emt 0:16:24] aiming for ...Nh5.} 15. Qa3 {[%emt 0:01:26]} Rb4 {[%emt 0:05:15]} 16. e4 {[%emt 0:00:12]} Bd7 {[%emt 0:06:13]} 17. Rfb1 {[%emt 0:05:19]} Qb6 {[%emt 0:02:05]} 18. Qc1 {[%emt 0:00:06]} Rb8 {[%emt 0:15:45]} 19. Bf1 {[%emt 0:00:10]} Ng4 {[%emt 0:03:09]} 20. h3 {[%emt 0:04:16]} Ne5 {[%emt 0:02:34]} 21. Be3 {[%emt 0:00:08] [#] And now Rxb4 would win.} f5 $2 {[%emt 0:04:02][%mdl 8192]} (21... Qd8 $15 {keeps the upper hand.} 22. Nd1 f5) 22. Rxb4 $18 {[%emt 0:00:47]} Qxb4 {[%emt 0:01:18]} 23. Rb1 {[%emt 0:00:37] Repels Qb2.   Weighted Error Value: White=0.19 (very precise) /Black=0.42} 1-0

[Event "4NCL 2022-2023"]
[Site "Daventry"]
[Date "2023.02.12"]
[Round "6.33"]
[White "Fernandez, Daniel Howard"]
[Black "Reimanis, Ritvars"]
[Result "1-0"]
[ECO "D00"]
[WhiteElo "2481"]
[BlackElo "2367"]
[Annotator "TA"]
[PlyCount "171"]
[EventDate "2022.10.20"]
[EventType "team-tourn"]
[EventCountry "ENG"]
[SourceTitle "playchess.com"]
[Source "ChessBase"]
[SourceQuality "1"]
[TimeControl "40/6000+30:2400+30"]

{[%evp 9,171,4,0,9,16,0,22,14,16,3,12,0,35,29,40,10,39,0,35,27,75,78,81,82,89,103,91,86,107,80,131,112,106,92,103,128,152,124,161,25,25,25,26,20,20,16,16,2,11,2,2,2,2,0,0,0,2,-9,0,0,3,0,25,0,29,29,29,29,36,36,39,35,39,0,22,24,24,33,25,25,77,39,77,77,77,0,67,67,67,67,67,33,33,33,33,33,33,33,58,58,83,0,0,0,0,0,0,0,1,0,0,0,0,0,0,0,0,-30,0,0,0,0,0,0,0,0,0,0,2,2,2,2,2,0,0,0,0,0,0,0,0,0,0,0,0,0,51,51,81,81,568,550,512,499,500,479,1207,460,1191,1015,29986,29987,29987,29988]} 1. d4 {[%emt 0:01:56]} Nf6 {[%emt 0:01:29]} 2. Nc3 {[%emt 0:05:52]} d5 {[%emt 0:00:33]} 3. Bf4 {[%emt 0:00:03]} c6 {[%emt 0:05:45]} 4. e3 {[%emt 0:00:33]} g6 {[%emt 0:04:18]} 5. h3 {[%emt 0:00:04]} Bg7 {[%emt 0:00:12]} 6. Nf3 {[%emt 0:03:54] D00: 1 d4 d5: Unusual lines.} O-O {[%emt 0:00:06][%cal Oc6c5]} 7. a4 {[%emt 0:03:56] 7.Be2 is setting a new trend.} Re8 {[%emt 0:02:11] [#]} 8. a5 $146 {[%emt 0:00:45] The position is equal.} ({Predecessor:} 8. Be2 Nbd7 9. O-O h6 10. a5 Nh7 11. Bh2 e5 12. dxe5 Nxe5 13. Nxe5 Bxe5 14. Bxe5 Rxe5 {1-0 Harsh,S (2280)-Bifulco,M (2316) Titled Tuesday intern op 13th Sep Early blitz 2022 (2)}) 8... Nfd7 {[%emt 0:05:33]} 9. Be2 {[%emt 0:10:38]} e5 {[%emt 0:07:31]} 10. Bh2 {[%emt 0:00:08]} e4 {[%emt 0:16:21]} 11. Nd2 {[%emt 0:00:05]} Nf8 {[%emt 0:01:44]} 12. b4 {[%emt 0:03:13]} Ne6 {[%emt 0:01:33][%cal Oe6d4]} (12... Qg5 $5 {[%cal Rg5g2]} 13. Bg3 Ne6 $11) 13. Nb3 {[%emt 0:01:15]} f5 {[%emt 0:05:47][%cal Of5f4]} (13... Bf8 $5 {[%cal Rf8b4]}) 14. Nc5 {[%emt 0:03:49]} Nd7 {[%emt 0:02:20]} (14... Nxc5 $11 {was preferrable.} 15. bxc5 Nd7) 15. Nxe6 $16 {[%emt 0:01:48]} Rxe6 {[%emt 0:00:07]} 16. Na4 {[%emt 0:00:06]} b5 {[%emt 0:10:47]} 17. axb6 $1 {[%emt 0:00:38]} axb6 {[%emt 0:00:07]} 18. c4 {[%emt 0:01:21]} Nf6 {[%emt 0:05:28]} 19. c5 {[%emt 0:06:16]} Nd7 {[%emt 0:01:09]} (19... b5 $142) 20. cxb6 {[%emt 0:03:33]} Nxb6 {[%emt 0:02:03]} 21. Nc5 {[%emt 0:00:03] Threatens to win with Rxa8.} Rxa1 {[%emt 0:02:01]} 22. Qxa1 {[%emt 0:00:02]} Re8 {[%emt 0:03:25]} 23. Qa7 {[%emt 0:01:51] White is more active.} Nc4 {[%emt 0:04:31]} 24. Qc7 {[%emt 0:03:46]} ({White should play} 24. O-O $18) 24... Qxc7 $11 {[%emt 0:05:14]} 25. Bxc7 {[%emt 0:00:02]} Bf8 {[%emt 0:01:04]} 26. Bxc4 {[%emt 0:05:35]} dxc4 {[%emt 0:00:05]} 27. Kd2 {[%emt 0:00:13]} Bxc5 {[%emt 0:04:24]} 28. bxc5 {[%emt 0:00:02][%mdl 4096] Endgame KRB-KRB} Re7 {[%emt 0:00:46]} 29. Bb6 {[%emt 0:00:14]} Be6 {[%emt 0:02:48]} 30. Ra1 {[%emt 0:00:02]} Rf7 {[%emt 0:01:10]} 31. Kc3 {[%emt 0:00:45]} g5 {[%emt 0:00:33]} 32. Ra8+ {[%emt 0:01:49]} Rf8 {[%emt 0:00:14]} 33. Ra6 {[%emt 0:00:33]} Bd5 {[%emt 0:01:00]} 34. Bc7 {[%emt 0:00:05]} Rf7 {[%emt 0:01:12]} 35. Be5 {[%emt 0:00:25]} h5 {[%emt 0:02:00]} 36. g3 {[%emt 0:01:21]} Rf8 {[%emt 0:09:30]} 37. h4 {[%emt 0:00:33]} gxh4 {[%emt 0:00:14]} 38. gxh4 {[%emt 0:00:04]} Rf7 {[%emt 0:00:06]} 39. Ra8+ {[%emt 0:00:29]} Rf8 {[%emt 0:00:05]} 40. Ra1 {[%emt 0:00:09]} Kh7 {[%emt 0:03:18]} 41. Kc2 {[%emt 0:40:27]} Kh6 {[%emt 0:00:00]} 42. Ra7 {[%emt 0:00:00] aiming for Bg7+.} Rf7 {[%emt 0:00:00] Prevents Bg7+.} 43. Ra8 {[%emt 0:00:00]} Rb7 {[%emt 0:00:00]} 44. Rf8 {[%emt 0:00:00]} Bf7 {[%emt 0:01:51]} (44... Rf7 $1 $11 45. Rg8 f4) 45. Rh8+ $16 {[%emt 0:00:00]} Kg6 {[%emt 0:00:03]} 46. Bf4 {[%emt 0:00:00] And now Rh6+ would win.} Kg7 {[%emt 0:00:27]} 47. Be5+ {[%emt 0:00:00]} Kg6 {[%emt 0:00:03][%cal Of5f4]} 48. Rd8 {[%emt 0:00:00] Rd6+ would be deadly.} Bd5 {[%emt 0:07:00][%cal Of5f4]} 49. Rf8 {[%emt 0:00:00]} Bf7 {[%emt 0:08:24]} 50. d5 {[%emt 0:00:00]} Bxd5 {[%emt 0:00:01]} 51. Rf6+ {[%emt 0:00:00]} Kh7 {[%emt 0:00:11]} 52. Rxf5 {[%emt 0:00:00]} Bf7 {[%emt 0:01:36]} 53. Rg5 {[%emt 0:00:00]} Bg6 {[%emt 0:01:10]} 54. Kc3 {[%emt 0:00:00]} Rf7 {[%emt 0:01:48]} 55. Rg2 {[%emt 0:00:00]} (55. Bf4 $16) 55... Rf5 $11 {[%emt 0:02:39]} 56. Bd4 {[%emt 0:00:00]} Bf7 {[%emt 0:00:53]} 57. Kd2 {[%emt 0:00:00]} Kh6 {[%emt 0:02:38]} 58. Ke1 {[%emt 0:00:00]} Rd5 {[%emt 0:01:51]} 59. Ke2 {[%emt 0:00:00]} Rf5 {[%emt 0:01:41]} 60. Rg1 {[%emt 0:00:00]} Bd5 {[%emt 0:00:42]} 61. Ra1 {[%emt 0:00:00]} Kg6 {[%emt 0:00:10]} 62. Ke1 {[%emt 0:00:00]} Rf3 {[%emt 0:00:21]} 63. Ke2 {[%emt 0:00:00]} Rf5 {[%emt 0:00:13]} 64. Bc3 {[%emt 0:00:00]} Rf3 {[%emt 0:00:13]} 65. Rg1+ {[%emt 0:00:00]} Kh6 {[%emt 0:00:26]} 66. Bg7+ {[%emt 0:00:00]} Kh7 {[%emt 0:00:01]} 67. Rg5 {[%emt 0:00:00]} Be6 {[%emt 0:00:24]} 68. Bd4 {[%emt 0:00:00]} (68. Rxh5+ $2 {too greedy.} Kxg7 69. Re5 Bd5 70. Rg5+ Kf6 $19) 68... Rf5 {[%emt 0:00:15]} 69. Rg7+ {[%emt 0:00:00]} Kh6 {[%emt 0:00:01]} 70. Re7 {[%emt 0:00:00]} Bd5 $1 {[%emt 0:00:08]} 71. Be5 {[%emt 0:00:45]} Kg6 {[%emt 0:00:32]} 72. Bc3 {[%emt 0:01:24]} Rf7 {[%emt 0:00:17]} 73. Re5 {[%emt 0:02:41]} Rf5 {[%emt 0:01:44]} 74. Re8 {[%emt 0:00:03]} Rf3 {[%emt 0:00:15]} 75. Kf1 {[%emt 0:07:26]} Rf7 {[%emt 0:04:30]} 76. Rg8+ {[%emt 0:00:12]} Kh6 {[%emt 0:01:02]} 77. Rg5 {[%emt 0:01:41]} Be6 {[%emt 0:00:16]} (77... Ra7 $11) 78. Re5 $1 $14 {[%emt 0:01:42][%csl LRe4,LRe6]} Bd5 {[%emt 0:00:06] [#]} 79. f4 $1 {[%emt 0:00:52][%cal Bf2f4,Bf4f5][%mdl 32]} Kg6 $2 {[%emt 0:02:48][%mdl 8192] [#] Loses the game.} (79... exf3 $2 80. e4 Bxe4 81. Rxe4 $18) (79... Rf8 $16) 80. Rg5+ $1 $18 {[%emt 0:00:15]} Kh6 {[%emt 0:00:02]} 81. f5 {[%emt 0:01:02]} Ra7 {[%emt 0:00:38]} 82. Kf2 {[%emt 0:02:07]} Ra8 {[%emt 0:04:14]} (82... Ra2+ $142 83. Kg3 Ra7) 83. Bg7+ {[%emt 0:02:04]} Kh7 {[%emt 0:00:02]} 84. Be5 {[%emt 0:00:10]} (84. Rxh5+ Kxg7 85. Rg5+ Kf6 86. Rg6+ Kxf5 87. Rg5+ Kf6 $19) 84... Kh6 {[%emt 0:00:28]} 85. Rg6+ {[%emt 0:00:03]} Kh7 {[%emt 0:00:04]} 86. Rg7+ {[%emt 0:00:08] Weighted Error Value: White=0.13 (very precise) /Black=0.10 (very precise)} 1-0

[Event "4NCL 2022-2023"]
[Site "Daventry"]
[Date "2023.02.12"]
[Round "6.34"]
[White "Urkedal, Frode Olav Olsen"]
[Black "Willow, Jonah B"]
[Result "1/2-1/2"]
[ECO "D31"]
[WhiteElo "2543"]
[BlackElo "2437"]
[Annotator "TA"]
[PlyCount "57"]
[EventDate "2022.10.20"]
[EventType "team-tourn"]
[EventCountry "ENG"]
[SourceTitle "playchess.com"]
[Source "ChessBase"]
[SourceQuality "1"]
[TimeControl "40/6000+30:2400+30"]

{[%evp 9,57,21,21,23,26,0,0,0,0,5,10,10,11,9,12,5,12,10,17,12,14,16,17,15,15,7,12,20,35,0,0,0,0,0,0,0,0,0,0,-4,-2,-11,-12,-12,-8,-8,0,-16,0,-32]} 1. d4 {[%emt 0:00:57]} d5 {[%emt 0:04:29]} 2. c4 {[%emt 0:02:14]} e6 {[%emt 0:00:07]} 3. Nc3 {[%emt 0:00:05]} a6 {[%emt 0:00:03]} 4. cxd5 {[%emt 0:00:57]} exd5 {[%emt 0:00:47]} 5. Bf4 {[%emt 0:02:47]} Nf6 {[%emt 0:00:07]} 6. e3 {[%emt 0:00:25] D31: Queen's Gambit Declined: Semi-Slav without ...Nf6 (+ Marshall Gambit and Noteboom) and Exchange Variation lines without ...Nf6.} c5 {[%emt 0:04:48] [#]} 7. Be2 $146 {[%emt 0:06:44]} ({Predecessor:} 7. Nge2 Nc6 8. g3 Bg4 9. Bg2 cxd4 10. exd4 Be7 11. O-O O-O 12. h3 Be6 13. Be3 {0-1 Korobov,A (2662)-Andreikin,D (2729) Titled Tuesday intern op 06th Dec Late blitz 2022 (5)}) 7... cxd4 {[%emt 0:09:58]} 8. exd4 {[%emt 0:00:22]} Bd6 {[%emt 0:02:47]} 9. Bg5 {[%emt 0:03:26]} Be6 {[%emt 0:09:12]} 10. Bf3 {[%emt 0:05:04][%cal Of3d5]} Nbd7 {[%emt 0:03:22]} 11. Nge2 {[%emt 0:00:52]} h6 {[%emt 0:03:57]} 12. Bf4 {[%emt 0:02:21]} Qb8 {[%emt 0:02:04]} 13. Qd2 {[%emt 0:01:20]} Nf8 {[%emt 0:09:31]} 14. Bxd6 {[%emt 0:06:28]} Qxd6 {[%emt 0:00:06]} 15. Nf4 {[%emt 0:00:10]} Ng6 {[%emt 0:08:42]} 16. Nxg6 {[%emt 0:03:53]} fxg6 {[%emt 0:00:08]} 17. O-O {[%emt 0:01:38]} O-O {[%emt 0:00:13]} 18. Rae1 {[%emt 0:00:55]} g5 {[%emt 0:09:30]} 19. Re3 {[%emt 0:10:19]} Bg4 {[%emt 0:07:59] The position is equal.} 20. Bd1 {[%emt 0:17:28]} Bxd1 {[%emt 0:04:39]} 21. Qxd1 {[%emt 0:00:07]} Rae8 {[%emt 0:00:46]} 22. Rfe1 {[%emt 0:00:35]} Rxe3 {[%emt 0:00:44]} 23. Rxe3 {[%emt 0:00:10]} b5 {[%emt 0:03:48]} 24. f3 {[%emt 0:16:02]} Qf4 {[%emt 0:05:52]} 25. Rd3 {[%emt 0:01:38]} g4 {[%emt 0:01:46]} 26. Ne2 {[%emt 0:03:02]} Qd6 {[%emt 0:02:18]} 27. Ng3 {[%emt 0:02:03]} Qf4 {[%emt 0:05:40]} 28. Ne2 {[%emt 0:05:17]} Qd6 {[%emt 0:00:08]} 29. Ng3 {[%emt 0:01:22] Not much happened in this game.   Weighted Error Value: White=0.04 (flawless) /Black=0.03 (flawless)} 1/2-1/2

[Event "4NCL 2022-2023"]
[Site "Daventry"]
[Date "2023.02.12"]
[Round "6.35"]
[White "Royal, Shreyas"]
[Black "Kilpatrick, Callum"]
[Result "1-0"]
[ECO "B31"]
[WhiteElo "2452"]
[BlackElo "2415"]
[Annotator "TA"]
[PlyCount "81"]
[EventDate "2022.10.20"]
[EventType "team-tourn"]
[EventCountry "ENG"]
[SourceTitle "playchess.com"]
[Source "ChessBase"]
[SourceQuality "1"]
[TimeControl "40/6000+30:2400+30"]

{[%evp 13,81,18,26,0,13,2,9,10,18,-4,0,6,6,6,6,6,6,0,6,6,6,6,6,6,6,0,5,-38,20,-68,48,31,34,44,42,22,40,13,37,0,0,0,0,0,0,0,0,0,20,0,67,67,57,0,110,114,373,364,552,529,524,498,5373,5297,5302,4779,3187,2750,5429,5429]} 1. e4 {[%emt 0:00:03]} c5 {[%emt 0:10:18]} 2. Nf3 {[%emt 0:00:11]} Nc6 {[%emt 0:00:22]} 3. Bb5 {[%emt 0:00:07]} g6 {[%emt 0:00:59]} 4. O-O {[%emt 0:00:14]} Bg7 {[%emt 0:00:42]} 5. Re1 {[%emt 0:00:27]} e5 {[%emt 0:14:44]} 6. Bxc6 {[%emt 0:01:47]} dxc6 {[%emt 0:01:18]} 7. d3 {[%emt 0:00:06]} Qc7 {[%emt 0:00:45]} 8. Nbd2 {[%emt 0:06:35] B31: Sicilian: 2...Nc6 3 Bb5 g6.} Nf6 {[%emt 0:03:47][%cal Bg8f6,Bf6d7,Bd7f8,Bf8e6,Be6d4][%mdl 32]} 9. Nc4 {[%emt 0:00:21]} Nd7 {[%emt 0:00:15]} 10. a4 {[%emt 0:00:05] The position is equal.} Nf8 {[%emt 0:16:27] [#]} 11. Qd2 $146 {[%emt 0:23:39]} ({Predecessor:} 11. a5 Ne6 12. Bd2 O-O 13. h3 Bd7 14. Qc1 b5 15. axb6 axb6 16. b4 b5 17. Ne3 {0-1 Schmidt,F (1952)-Barseghyan,A (2313) Berlin Lichtenberger op 18th 2019 (2)}) 11... Bg4 {[%emt 0:20:35]} 12. Qe3 {[%emt 0:00:54]} Bxf3 {[%emt 0:04:36]} 13. Qxf3 {[%emt 0:00:08]} (13. gxf3 Ne6 14. Qe2 O-O $17) 13... Ne6 {[%emt 0:00:17]} 14. b3 {[%emt 0:10:00]} O-O {[%emt 0:05:36]} 15. Bb2 {[%emt 0:01:07]} Rad8 {[%emt 0:03:05]} 16. Bc3 {[%emt 0:04:44]} Nd4 {[%emt 0:00:41]} 17. Qd1 {[%emt 0:00:57]} b6 {[%emt 0:00:11]} 18. Qd2 {[%emt 0:04:52]} Rfe8 {[%emt 0:01:10]} 19. Ne3 {[%emt 0:03:07]} h5 {[%emt 0:00:36]} 20. Bxd4 {[%emt 0:05:30]} Rxd4 {[%emt 0:02:21] [#]} (20... cxd4 $15 21. Nc4 Rb8) 21. Nd5 {[%emt 0:01:50]} Qd7 {[%emt 0:11:08]} (21... cxd5 $15 22. c3 dxe4 23. cxd4 exd3 24. dxe5 Bxe5) 22. c3 $14 {[%emt 0:00:39]} Rxd5 {[%emt 0:00:11]} 23. exd5 {[%emt 0:00:07]} cxd5 {[%emt 0:00:12]} 24. Re2 {[%emt 0:05:50]} f5 {[%emt 0:01:34]} 25. Rae1 {[%emt 0:01:42]} Rd8 {[%emt 0:10:22]} 26. Rxe5 {[%emt 0:06:03]} Bxe5 {[%emt 0:00:02]} 27. Rxe5 {[%emt 0:00:07][%mdl 4096] Endgame KQR-KQR} Re8 {[%emt 0:00:54]} 28. Qe2 {[%emt 0:02:48]} Kf7 {[%emt 0:00:32]} 29. g3 {[%emt 0:00:17]} Rxe5 {[%emt 0:00:22]} 30. Qxe5 $11 {[%emt 0:00:05] KQ-KQ} Qe6 {[%emt 0:00:17]} 31. Qh8 {[%emt 0:00:07]} Qe1+ {[%emt 0:00:41]} ({Black should play} 31... c4 $11 32. Qh7+ Kf6 33. Qh8+ Kf7 34. Qh7+ Kf6 35. Qh8+ Kf7) 32. Kg2 $14 {[%emt 0:00:04] Threatens to win with Qh7+.} Qe7 {[%emt 0:00:41][%cal Oc5c4]} 33. h4 {[%emt 0:00:48]} (33. Qh7+ $14 Kf6 34. Qg8) 33... Ke6 {[%emt 0:00:27]} (33... f4 $11 {keeps the balance.}) 34. Kf3 $16 {[%emt 0:04:42] White is more active.} Qf7 $2 {[%emt 0:00:36][%mdl 8192] [#] This move loses the game for Black.} (34... Qc7 $16) 35. Kf4 $1 $18 {[%emt 0:01:49]} Kd6 {[%emt 0:00:34]} (35... Qf6 {is a better defense.} 36. Qe8+ Kd6 37. Qb8+ Ke6 38. Qxa7 Qxc3 39. Qxb6+ Kd7 40. Qb5+ (40. Qxg6 Qd2+ 41. Kf3 Qxd3+ 42. Kg2 Qe4+ 43. Kg1 Qe1+ 44. Kg2 Qe4+ 45. Kf1 Qh1+ 46. Ke2 Qe4+ 47. Kd2 Qd4+ 48. Ke2 Qe4+ 49. Kf1 Qh1+ 50. Ke2 Qe4+ $11) 40... Kd6) 36. Qd8+ {[%emt 0:00:55] White is clearly winning.} Ke6 {[%emt 0:00:27]} 37. Kg5 {[%emt 0:00:56] Wards off Qf6+. aiming for f4.} Qg7 {[%emt 0:00:32]} (37... f4 $142 38. Qc8+ (38. gxf4 Qf5+ 39. Kh6 Qxf4+ 40. Qg5 Qxf2 $16) 38... Kd6 39. Qb8+ Ke6 40. Qxf4 (40. gxf4 Qf6+ 41. Kh6 g5+ 42. Kxh5 Qf7+ 43. Kh6 Qf6+ 44. Kh7 Qf7+ 45. Kh6 Qf6+ 46. Kh7 gxh4 $11) 40... Qg7) 38. Qe8+ {[%emt 0:00:17]} Kd6 {[%emt 0:00:22]} 39. Qxg6+ {[%emt 0:00:42]} Qxg6+ {[%emt 0:00:01]} 40. Kxg6 {[%emt 0:00:07]} a5 {[%emt 0:01:13]} 41. c4 {[%emt 0:40:32] Weighted Error Value: White=0.15 (very precise) /Black=0.34} 1-0